fUSD/lending_fUSD_20250311
["ID","MTS","AMOUNT","RATE_DAILY","PERIOD"]
[355887829,1741681832146,-991.22,9.01e-05,2]
[355887830,1741681832155,-440.23,9.01e-05,2]
[355887831,1741681832165,-316.81,9.032e-05,2]
[355887832,1741681832174,-223.1366,9.04e-05,2]
[355887833,1741681832184,-156.6586,9.04e-05,2]
[355887834,1741681832193,-267.4975,9.041e-05,2]
[355887835,1741681832203,-3892.3705,9.041e-05,2]
[355887836,1741681832213,-559.9155,9.041e-05,2]
[355887837,1741681832222,-485.712,9.041e-05,2]
[355887838,1741681832232,-649.3347,9.041e-05,2]
[355887839,1741681832241,-316.81,9.06e-05,2]
[355887840,1741681832250,-316.81,9.088e-05,2]
[355887841,1741681832259,-52154.49316516,9.1e-05,2]
[355887842,1741681832270,-13389.62193384,9.1e-05,2]
[355887843,1741681832279,-316.81,9.116e-05,2]
[355887844,1741681832289,-538.64153023,9.123e-05,2]
[355887845,1741681832298,-523.2632804,9.123e-05,2]
[355887846,1741681832307,-167.72151203,9.123e-05,2]
[355887847,1741681832316,-160.95780024,9.123e-05,2]
[355887848,1741681832326,-1232.03026769,9.14e-05,3]
[355887849,1741681832335,-1232.03026769,9.14e-05,3]
[355887850,1741681832344,-1232.03026769,9.14e-05,3]
[355887851,1741681832353,-1519.03,9.14e-05,2]
[355887852,1741681832362,-364.66537749,9.141e-05,2]
[355887853,1741681832372,-61032.50066636,9.141e-05,2]
[355887854,1741681832382,-3673.59551758,9.141e-05,2]
[355887855,1741681832393,-1144.03686639,9.141e-05,2]
[355887856,1741681832415,-11938.97,9.141e-05,2]
[355887857,1741681832426,-20269.75,9.141e-05,2]
[355887869,1741681837714,-6269.49777717,9.141e-05,2]
[355887870,1741681837790,-19535.89949012,9.141e-05,2]
[355887871,1741681837852,-1191.28976812,9.141e-05,2]
[355887872,1741681837865,-1510.92569718,9.141e-05,2]
[355887873,1741681837916,-256.91980793,9.141e-05,2]
[355888106,1741681840167,-0.00165389,9.141e-05,2]
[355888108,1741681840179,-3216.543,9.141e-05,2]
[355888186,1741681841101,-1451.37024106,9.141e-05,2]
[355888194,1741681841176,-594.0,9.141e-05,2]
[355888196,1741681841187,-9000.0,9.141e-05,2]
[355888229,1741681841504,-238.82240783,9.141e-05,2]
[355888362,1741681842729,-89138.68484136,9.141e-05,2]
[355888372,1741681842783,-958.15,9.141e-05,2]
[355888376,1741681842795,-356.79809144,9.141e-05,2]
[355888489,1741681843985,-4902.36500065,9.141e-05,2]
[355888492,1741681843997,-8015.69996,9.141e-05,2]
[355888678,1741681845877,-746.92259285,9.141e-05,2]
[355888679,1741681846102,-309.81167356,9.141e-05,2]
[355888680,1741681846113,-8121.99923932,9.141e-05,2]
[355888934,1741681850632,200.0,8.764e-05,2]
[355889708,1741681979758,525.909676,8.859e-05,2]
[355889711,1741682107827,12542.04002112,8.719e-05,2]
[355889712,1741682107854,1385.32997888,8.719e-05,2]
[355889714,1741682146538,243.27,8.714e-05,2]
[355889715,1741682275581,150.0,8.692e-05,2]
[355889716,1741682344897,2000.0,8.683e-05,2]
[355889717,1741682428734,981.99,8.68e-05,2]
[355889718,1741682472857,156.39,8.699e-05,2]
[355889720,1741682499539,239.21,8.721e-05,2]
[355889723,1741682661957,205.05,8.714e-05,2]
[355889724,1741682710059,1593.69,8.219e-05,2]
[355889725,1741682884559,-156.39,8.804e-05,2]
[355889726,1741682884583,-125.55615983,8.816e-05,2]
[355889727,1741682908954,185.19,8.575e-05,2]
[355889728,1741682932428,250.0,8.714e-05,2]
[355889729,1741682949856,500.0,8.027e-05,2]
[355889730,1741682962530,164.83,8.714e-05,2]
[355889731,1741682963634,1000.0,8.219e-05,2]
[355889742,1741683031950,-424.44384017,8.816e-05,2]
[355889743,1741683031961,-1000.0,8.829e-05,2]
[355889744,1741683031971,-150.0,8.848e-05,2]
[355889745,1741683031980,-150.0,8.848e-05,2]
[355889746,1741683031990,-150.0,8.853e-05,2]
[355889747,1741683031999,-150.0,8.863e-05,2]
[355889748,1741683032009,-1000.0,8.867e-05,2]
[355889749,1741683032018,-150.0,8.869e-05,2]
[355889750,1741683032028,-1000.0,8.873e-05,2]
[355889751,1741683032038,-150.0,8.887e-05,2]
[355889752,1741683032047,-1000.0,8.887e-05,2]
[355889753,1741683032057,-150.0,8.888e-05,2]
[355889754,1741683032067,-150.0,8.899e-05,2]
[355889755,1741683032077,-156.39,8.908e-05,2]
[355889756,1741683032087,-150.0,8.908e-05,2]
[355889757,1741683032096,-150.0,8.911e-05,2]
[355889758,1741683032106,-150.0,8.912e-05,2]
[355889759,1741683032115,-150.0,8.914e-05,2]
[355889760,1741683032125,-150.0,8.921e-05,2]
[355889761,1741683032134,-1000.0,8.925e-05,2]
[355889762,1741683032144,-150.0,8.925e-05,2]
[355889763,1741683032154,-150.0,8.93e-05,2]
[355889764,1741683032163,-150.95478258,8.95e-05,2]
[355889765,1741683032172,-150.0,8.954e-05,2]
[355889766,1741683032182,-150.0,8.959e-05,2]
[355889767,1741683032191,-150.0,8.97e-05,2]
[355889768,1741683032200,-150.0,8.975e-05,2]
[355889769,1741683032210,-1000.0,8.979e-05,2]
[355889770,1741683032219,-150.0,8.981e-05,2]
[355889771,1741683032228,-150.0,8.985e-05,2]
[355889772,1741683032237,-150.0,8.986e-05,2]
[355889773,1741683032246,-150.0,8.99e-05,2]
[355889774,1741683032255,-150.28,8.99e-05,2]
[355889775,1741683032265,-150.0,8.992e-05,2]
[355889776,1741683032274,-150.0,8.992e-05,2]
[355889777,1741683032283,-1000.0,9.004e-05,2]
[355889778,1741683032292,-156.39,9.012e-05,2]
[355889779,1741683032302,-150.0,9.015e-05,2]
[355889780,1741683032310,-150.0,9.017e-05,2]
[355889781,1741683032320,-150.0,9.02e-05,2]
[355889782,1741683032329,-486.1839,9.041e-05,2]
[355889783,1741683032338,-150.0,9.059e-05,2]
[355889784,1741683032347,-1000.0,9.066e-05,2]
[355889785,1741683032356,-150.0,9.07e-05,2]
[355889786,1741683032366,-150.0,9.071e-05,2]
[355889787,1741683032375,-150.0,9.074e-05,2]
[355889788,1741683032384,-150.0,9.076e-05,2]
[355889789,1741683032394,-150.0,9.076e-05,2]
[355889790,1741683032403,-150.0,9.08e-05,2]
[355889791,1741683032413,-150.0,9.087e-05,2]
[355889792,1741683032422,-150.0,9.095e-05,2]
[355889793,1741683032431,-150.0,9.096e-05,2]
[355889794,1741683032441,-150.0,9.106e-05,2]
[355889795,1741683032451,-150.0,9.113e-05,2]
[355889796,1741683032460,-156.39,9.117e-05,2]
[355889797,1741683032470,-150.0,9.117e-05,2]
[355889798,1741683032480,-883.44,9.12e-05,2]
[355889799,1741683032493,-450.0,9.14e-05,2]
[355889800,1741683032503,-500.0,9.14e-05,2]
[355889801,1741683032512,-536.45402853,9.14e-05,2]
[355889802,1741683032522,-300.0,9.14e-05,2]
[355889803,1741683032532,-150.0,9.14e-05,2]
[355889804,1741683032542,-754.24,9.14e-05,2]
[355889805,1741683032551,-1099.00594715,9.141e-05,2]
[355889806,1741683032561,-55367.94914659,9.141e-05,2]
[355889807,1741683032573,-38323.25929796,9.141e-05,2]
[355889808,1741683032622,-164776.90314272,9.141e-05,2]
[355889809,1741683032631,-125732.02075286,9.141e-05,2]
[355889810,1741683032868,-9757.12817506,9.141e-05,2]
[355889811,1741683032898,-1607.2,9.141e-05,2]
[355889812,1741683032909,-16117.16191846,9.141e-05,2]
[355889813,1741683032921,-1516.24632183,9.141e-05,2]
[355889814,1741683033056,-5186.06402337,9.141e-05,2]
[355889815,1741683033083,-17259.14400613,9.141e-05,2]
[355889816,1741683033096,-2401.11058956,9.141e-05,2]
[355889823,1741683038041,-589.22609992,9.141e-05,2]
[355889824,1741683038070,-7579.32528866,9.141e-05,2]
[355889825,1741683038082,-7496.75202674,9.141e-05,2]
[355889826,1741683038153,-1473.85884344,9.141e-05,2]
[355889827,1741683038164,-260.58,9.141e-05,2]
[355889834,1741683039937,-2453.82069819,9.141e-05,2]
[355889835,1741683039990,-3445.74720309,9.141e-05,2]
[355889836,1741683040003,-4930.9037663,9.141e-05,2]
[355889837,1741683040018,-607.46602351,9.141e-05,2]
[355889838,1741683040114,-1000.0,9.141e-05,2]
[355889839,1741683040156,-5559.68,9.141e-05,2]
[355889840,1741683040260,-2378.00000003,9.141e-05,2]
[355889854,1741683041696,-19.61034365,9.135e-05,2]
[355889866,1741683042955,-19895.5065,9.041e-05,2]
[355889867,1741683042965,-2771.58190105,9.135e-05,2]
[355889868,1741683042974,-66471.59644031,9.141e-05,2]
[355889877,1741683044293,-3447.51354814,9.141e-05,2]
[355889878,1741683044305,-427.09041548,9.141e-05,2]
[355889879,1741683044316,-5189.4370075,9.141e-05,2]
[355889880,1741683044327,-259.27748705,9.141e-05,2]
[355889916,1741683046050,-13377.10368632,9.141e-05,2]
[355889919,1741683046061,-8850.72486,9.141e-05,2]
[355889921,1741683046103,-24402.5239924,9.141e-05,2]
[355889922,1741683046168,-2717.1631246,9.141e-05,2]
[355889923,1741683046211,-4325.52285979,9.141e-05,2]
[355890171,1741683133752,32491.81422552,0.00012,120]
[355890172,1741683219735,782.05,8.714e-05,2]
[355890185,1741683407113,2000.0,8.059e-05,2]
[355890186,1741683415040,477.17,8.714e-05,2]
[355890187,1741683549491,157.35,8.714e-05,2]
[355890188,1741683585493,200.0,8.053e-05,2]
[355890189,1741683615743,946.45,8.219e-05,2]
[355890190,1741683763807,1608.54,8.219e-05,2]
[355890191,1741683895867,-150.0,8.858e-05,2]
[355890192,1741683895903,-281.94615983,8.858e-05,2]
[355890193,1741683895939,-550.0,8.865e-05,2]
[355890194,1741683895975,-150.0,8.865e-05,2]
[355890195,1741683896014,-150.0,8.872e-05,2]
[355890196,1741683896255,-436.10768034,8.881e-05,2]
[355890198,1741683996754,1000.0,8.219e-05,2]
[355890199,1741684082706,-150.0,8.862e-05,2]
[355890200,1741684082729,-150.0,8.872e-05,2]
[355890201,1741684092825,250.0,8.219e-05,2]
[355890208,1741684214520,1221.94153995,0.000201,120]
[355890214,1741684232141,-904.3336921,8.845e-05,2]
[355890215,1741684232249,-95.6663079,8.845e-05,2]
[355890216,1741684232259,-400.0,8.872e-05,2]
[355890217,1741684232269,-150.0,8.872e-05,2]
[355890218,1741684232279,-150.0,8.881e-05,2]
[355890219,1741684232288,-150.0,8.882e-05,2]
[355890220,1741684232297,-150.0,8.883e-05,2]
[355890221,1741684232307,-150.0,8.884e-05,2]
[355890222,1741684232316,-1068.32842823,8.885e-05,2]
[355890223,1741684232326,-150.0,8.89e-05,2]
[355890224,1741684232335,-150.24169033,8.895e-05,2]
[355890225,1741684232344,-175.35120356,8.895e-05,2]
[355890226,1741684232354,-175.3479972,8.898e-05,2]
[355890227,1741684232364,-150.0,8.904e-05,2]
[355890228,1741684232374,-802.86437278,8.91e-05,2]
[355890229,1741684232399,-93.02562722,8.91e-05,2]
[355890230,1741684232409,-150.9,8.92e-05,2]
[355890231,1741684232418,-13.3226793,8.92e-05,2]
[355890232,1741684232430,-342.6073207,8.92e-05,2]
[355890233,1741684232440,-150.0,8.922e-05,2]
[355890234,1741684232450,-150.0,8.927e-05,2]
[355890235,1741684232460,-150.0,8.93e-05,2]
[355890236,1741684232469,-150.0,8.93e-05,2]
[355890237,1741684232478,-152.62,8.93e-05,2]
[355890238,1741684232490,-150.0,8.937e-05,2]
[355890239,1741684232499,-324.49,8.94e-05,2]
[355890240,1741684232509,-695.51,8.94e-05,2]
[355890241,1741684232518,-150.0,8.94e-05,2]
[355890242,1741684232528,-1031.46,8.94e-05,2]
[355890243,1741684232538,-542.94,8.94e-05,2]
[355890244,1741684232547,-150.0,8.94e-05,2]
[355890245,1741684232556,-150.0,8.942e-05,2]
[355890246,1741684232566,-150.0,8.942e-05,2]
[355890247,1741684232575,-150.0,8.943e-05,2]
[355890248,1741684232585,-1000.0,8.943e-05,2]
[355890249,1741684232594,-150.0,8.964e-05,2]
[355890250,1741684232604,-1000.0,8.968e-05,2]
[355890251,1741684232613,-150.0,8.971e-05,2]
[355890252,1741684232623,-150.0,8.972e-05,2]
[355890254,1741684232632,-150.0,8.972e-05,2]
[355890255,1741684232642,-150.0,8.973e-05,2]
[355890256,1741684232652,-157.35,8.975e-05,2]
[355890257,1741684232661,-150.0,8.975e-05,2]
[355890258,1741684232671,-150.0,8.977e-05,2]
[355890259,1741684232680,-150.0,8.978e-05,2]
[355890260,1741684232690,-150.0,8.98e-05,2]
[355890261,1741684232700,-150.0,8.986e-05,2]
[355890262,1741684232709,-150.0,8.99e-05,2]
[355890263,1741684232719,-150.0,8.997e-05,2]
[355890264,1741684232729,-150.0,8.997e-05,2]
[355890265,1741684232739,-550.0,9e-05,2]
[355890267,1741684232749,-415.0,9e-05,2]
[355890269,1741684232758,-150.0,9e-05,2]
[355890271,1741684232767,-150.0,9.002e-05,2]
[355890273,1741684232776,-150.0,9.008e-05,2]
[355890275,1741684232785,-1000.0,9.011e-05,2]
[355890277,1741684232793,-761.79422425,9.016e-05,2]
[355890279,1741684232802,-1000.0,9.023e-05,2]
[355890281,1741684232811,-150.0,9.028e-05,2]
[355890283,1741684232820,-150.0,9.033e-05,2]
[355890285,1741684232830,-150.0,9.033e-05,2]
[355890287,1741684232841,-324.4442,9.041e-05,2]
[355890288,1741684232854,-150.0,9.051e-05,2]
[355890290,1741684232863,-150.0,9.059e-05,2]
[355890292,1741684232872,-150.0,9.062e-05,2]
[355890294,1741684232883,-150.0,9.066e-05,2]
[355890296,1741684232893,-150.0,9.069e-05,2]
[355890298,1741684232903,-1000.0,9.086e-05,2]
[355890299,1741684232913,-5040.32975505,9.09e-05,2]
[355890300,1741684232952,-439.82856113,9.09e-05,2]
[355890301,1741684232963,-909.12669,9.09e-05,2]
[355890302,1741684232974,-766.16752,9.09e-05,2]
[355890303,1741684233015,-1710.2939034,9.09e-05,2]
[355890304,1741684233025,-150.0,9.097e-05,2]
[355890305,1741684233035,-27000.0,9.1e-05,2]
[355890306,1741684233045,-150.0,9.1e-05,2]
[355890307,1741684233055,-150.0,9.108e-05,2]
[355890308,1741684233066,-150.0,9.113e-05,2]
[355890309,1741684233076,-150.0,9.119e-05,2]
[355890310,1741684233086,-150.0,9.122e-05,2]
[355890311,1741684233096,-495.27576562,9.123e-05,2]
[355890312,1741684233106,-151.1909679,9.123e-05,2]
[355890313,1741684233116,-150.0,9.134e-05,2]
[355890314,1741684233126,-5244.9550675,9.135e-05,2]
[355890315,1741684233137,-7757.5659814,9.135e-05,2]
[355890316,1741684233148,-500.0,9.14e-05,2]
[355890318,1741684233159,-200.0,9.14e-05,2]
[355890320,1741684233169,-500.0,9.14e-05,2]
[355890322,1741684233178,-441.98044747,9.14e-05,2]
[355890324,1741684233188,-500.0,9.14e-05,2]
[355890326,1741684233198,-500.0,9.14e-05,2]
[355890328,1741684233209,-500.0,9.14e-05,2]
[355890330,1741684233219,-500.0,9.14e-05,2]
[355890332,1741684233229,-500.0,9.14e-05,2]
[355890334,1741684233241,-498.97,9.14e-05,2]
[355890336,1741684233252,-1064.88234723,9.141e-05,2]
[355890338,1741684233261,-461325.28781983,9.141e-05,2]
[355890341,1741684233289,-883.48900585,9.141e-05,2]
[355890346,1741684233329,-193871.8216,9.141e-05,2]
[355890431,1741684238426,-2481.16289941,9.141e-05,2]
[355890432,1741684238498,-885.41376632,9.141e-05,2]
[355890433,1741684238519,-309.00000075,9.141e-05,2]
[355890497,1741684240486,-150.0,9.02e-05,2]
[355890498,1741684240495,-66954.6095,9.141e-05,2]
[355890539,1741684244161,-2383.93747691,9.141e-05,2]
[355890540,1741684244254,-69243.17834136,9.141e-05,2]
[355890541,1741684244266,-82000.0,9.141e-05,2]
[355890548,1741684246280,-77236.71509403,9.141e-05,2]
[355890549,1741684246290,-571.3391647,9.141e-05,2]
[355890550,1741684246356,-233218.215,9.141e-05,2]
[355890551,1741684246433,-520.38152683,9.141e-05,2]
[355890552,1741684246445,-621.90745825,9.141e-05,2]
[355890553,1741684246594,-1184.73,9.141e-05,2]
[355890560,1741684259042,749358.68048586,0.000201,120]
[355890561,1741684328301,573.87,8.609e-05,2]
[355890562,1741684675209,20836.53,8.188e-05,2]
[355890563,1741684773617,200.0,8.175e-05,2]
[355890564,1741684790209,-189.562235,8.841e-05,2]
[355890565,1741684791113,700.95,8.219e-05,2]
[355890566,1741684802377,151.22,8.175e-05,2]
[355890567,1741684803060,151.22,8.208e-05,2]
[355890568,1741684804172,151.22,8.241e-05,2]
[355890569,1741684804381,151.22,8.273e-05,2]
[355890570,1741684805190,151.22,8.306e-05,2]
[355890571,1741684805342,151.22,8.339e-05,2]
[355890572,1741684805480,151.22,8.371e-05,2]
[355890573,1741684805600,151.22,8.404e-05,2]
[355890574,1741684807332,151.22,8.437e-05,2]
[355890575,1741684807416,151.22,8.47e-05,2]
[355890576,1741684807557,151.22,8.502e-05,2]
[355890577,1741684808081,151.22,8.535e-05,2]
[355890578,1741684808383,151.22,8.568e-05,2]
[355890579,1741684808430,151.22,8.6e-05,2]
[355890580,1741684808742,151.22,8.633e-05,2]
[355890581,1741684808874,151.22,8.666e-05,2]
[355890582,1741684949949,1800.0,8.22e-05,2]
[355890583,1741684950616,1800.0,8.22e-05,2]
[355890584,1741685038838,250.0,8.748e-05,2]
[355890585,1741685042246,1000.0,8.219e-05,2]
[355890587,1741685248522,164.75,8.219e-05,2]
[355890603,1741685392428,-150.0,8.841e-05,2]
[355890604,1741685406898,157.0,8.609e-05,3]
[355890605,1741685429670,625.64,8.043e-05,2]
[355890625,1741685432610,-504.21884694,8.841e-05,2]
[355890626,1741685432622,-633.91785618,8.841e-05,2]
[355890627,1741685432632,-1238.04,8.841e-05,2]
[355890628,1741685432776,-1696.06106188,8.841e-05,2]
[355890629,1741685432786,-150.0,8.867e-05,2]
[355890630,1741685432796,-150.0,8.892e-05,2]
[355890631,1741685432805,-165.42722507,8.917e-05,2]
[355890632,1741685432815,-232.95766085,8.92e-05,2]
[355890633,1741685432824,-150.0,8.92e-05,2]
[355890634,1741685432833,-150.0,8.925e-05,2]
[355890635,1741685432842,-150.0,8.944e-05,2]
[355890636,1741685432851,-150.0,8.964e-05,2]
[355890637,1741685432860,-150.0,8.982e-05,2]
[355890638,1741685432869,-150.0,8.999e-05,2]
[355890639,1741685432878,-300.0,8.999e-05,2]
[355890640,1741685432887,-500.0,9e-05,2]
[355890641,1741685432896,-500.0,9e-05,2]
[355890642,1741685432905,-500.0,9e-05,2]
[355890643,1741685432914,-500.0,9e-05,2]
[355890644,1741685432923,-500.0,9e-05,2]
[355890645,1741685432932,-500.0,9e-05,2]
[355890646,1741685432942,-500.0,9e-05,2]
[355890647,1741685432950,-500.0,9e-05,2]
[355890648,1741685432959,-500.0,9e-05,2]
[355890649,1741685432968,-500.0,9e-05,2]
[355890650,1741685432977,-500.0,9e-05,2]
[355890651,1741685432987,-500.0,9e-05,2]
[355890652,1741685432996,-426.83,9e-05,2]
[355890653,1741685433006,-500.0,9e-05,2]
[355890654,1741685433016,-500.0,9e-05,2]
[355890655,1741685433026,-500.0,9e-05,2]
[355890656,1741685433036,-500.0,9e-05,2]
[355890657,1741685433047,-500.0,9e-05,2]
[355890658,1741685433056,-500.0,9e-05,2]
[355890659,1741685433066,-500.0,9e-05,2]
[355890660,1741685433076,-500.0,9e-05,2]
[355890661,1741685433086,-500.0,9e-05,2]
[355890662,1741685433095,-500.0,9e-05,2]
[355890663,1741685433105,-500.0,9e-05,2]
[355890664,1741685433114,-500.0,9e-05,2]
[355890665,1741685433124,-500.0,9e-05,2]
[355890666,1741685433134,-500.0,9e-05,2]
[355890667,1741685433144,-500.0,9e-05,2]
[355890668,1741685433154,-500.0,9e-05,2]
[355890669,1741685433164,-500.0,9e-05,2]
[355890670,1741685433174,-500.0,9e-05,2]
[355890671,1741685433184,-500.0,9e-05,2]
[355890672,1741685433199,-500.0,9e-05,2]
[355890673,1741685433209,-500.0,9e-05,2]
[355890674,1741685433219,-500.0,9e-05,2]
[355890675,1741685433229,-500.0,9e-05,2]
[355890676,1741685433239,-500.0,9e-05,2]
[355890677,1741685433248,-500.0,9e-05,2]
[355890678,1741685433257,-500.0,9e-05,2]
[355890679,1741685433267,-500.0,9e-05,2]
[355890680,1741685433277,-500.0,9e-05,2]
[355890681,1741685433286,-500.0,9e-05,2]
[355890682,1741685433296,-433.50173243,9e-05,2]
[355890683,1741685433309,-66.49826757,9e-05,2]
[355890684,1741685433318,-205.97856312,9e-05,2]
[355890685,1741685433403,-294.02143688,9e-05,2]
[355890686,1741685433413,-500.0,9e-05,2]
[355890687,1741685433422,-500.0,9e-05,2]
[355890688,1741685433431,-500.0,9e-05,2]
[355890689,1741685433440,-500.0,9e-05,2]
[355890690,1741685433450,-500.0,9e-05,2]
[355890691,1741685433459,-500.0,9e-05,2]
[355890692,1741685433468,-500.0,9e-05,2]
[355890693,1741685433477,-500.0,9e-05,2]
[355890694,1741685433486,-500.0,9e-05,2]
[355890695,1741685433495,-500.0,9e-05,2]
[355890696,1741685433504,-500.0,9e-05,2]
[355890697,1741685433513,-402.89,9e-05,2]
[355890698,1741685433522,-787.01419432,9e-05,2]
[355890699,1741685433567,-1302.69480568,9e-05,2]
[355890700,1741685433576,-201.26856129,9e-05,2]
[355890701,1741685433586,-550.0,9e-05,2]
[355890702,1741685433595,-150.0,9.01e-05,2]
[355890703,1741685433604,-1322.54662723,9.016e-05,2]
[355890704,1741685433614,-150.0,9.022e-05,2]
[355890705,1741685433623,-150.0,9.028e-05,2]
[355890706,1741685433633,-150.0,9.032e-05,2]
[355890707,1741685433643,-150.0,9.034e-05,2]
[355890708,1741685433652,-150.0,9.037e-05,2]
[355890709,1741685433661,-1220.19,9.037e-05,2]
[355890710,1741685433670,-150.99,9.037e-05,2]
[355890711,1741685433680,-150.0,9.039e-05,2]
[355890712,1741685433689,-696.02656301,9.039e-05,2]
[355890713,1741685433698,-352.44410523,9.04e-05,2]
[355890714,1741685433710,-2147.55589477,9.04e-05,2]
[355890715,1741685433719,-1429.3883,9.041e-05,2]
[355890716,1741685433728,-1842.63780256,9.041e-05,2]
[355890717,1741685433740,-1222.65758095,9.041e-05,2]
[355890718,1741685433764,-1198.65,9.041e-05,2]
[355890719,1741685433776,-536.26801649,9.041e-05,2]
[355890720,1741685433786,-150.0,9.041e-05,2]
[355890721,1741685433795,-267.17198351,9.045e-05,2]
[355890722,1741685433807,-126.83296974,9.045e-05,2]
[355890723,1741685433816,-150.0,9.046e-05,2]
[355890724,1741685433825,-625.64,9.048e-05,2]
[355890725,1741685433834,-150.0,9.053e-05,2]
[355890726,1741685433843,-150.0,9.063e-05,2]
[355890727,1741685433852,-150.0,9.081e-05,2]
[355890728,1741685433862,-150.0,9.082e-05,2]
[355890729,1741685433871,-150.0,9.092e-05,2]
[355890730,1741685433880,-2205.61947142,9.1e-05,2]
[355890736,1741685438616,-24603.05574943,9.1e-05,2]
[355890737,1741685438725,-467.4843026,9.1e-05,2]
[355890738,1741685438736,-3086.70903572,9.1e-05,2]
[355890754,1741685440508,-0.00129711,9.1e-05,2]
[355890755,1741685440724,-9496.21160135,9.1e-05,2]
[355890756,1741685440747,-2452.45000008,9.1e-05,2]
[355890757,1741685440759,-2389.69999988,9.1e-05,2]
[355890771,1741685443568,-69243.17834136,9.1e-05,2]
[355890776,1741685446526,-861.25,9.1e-05,2]
[355890777,1741685446653,-23552.52145119,9.1e-05,2]
[355890778,1741685446663,-150.0,9.109e-05,2]
[355890779,1741685446672,-501.72082279,9.123e-05,2]
[355890780,1741685446681,-150.0,9.125e-05,2]
[355890781,1741685446691,-148.95772602,9.135e-05,2]
[355890782,1741685446712,-102.70389298,9.135e-05,2]
[355890783,1741685446721,-1636.4616582,9.135e-05,2]
[355890784,1741685446731,-29.52073471,9.135e-05,2]
[355890785,1741685446815,-651.1875,9.135e-05,2]
[355890787,1741685668401,1634.76,8.219e-05,2]
[355890789,1741685958264,947.59,8.222e-05,2]
[355890790,1741686006401,-150.0,8.951e-05,2]
[355890791,1741686006428,-88.82240783,9e-05,2]
[355890792,1741686043506,297.37,8.309e-05,2]
[355890793,1741686043884,297.37,8.335e-05,2]
[355890794,1741686044082,297.37,8.361e-05,2]
[355890795,1741686044279,297.37,8.387e-05,2]
[355890796,1741686044488,297.37,8.414e-05,2]
[355890797,1741686044690,297.37,8.44e-05,2]
[355890798,1741686044877,297.37,8.466e-05,2]
[355890799,1741686045093,297.37,8.492e-05,2]
[355890800,1741686045320,297.37,8.519e-05,2]
[355890801,1741686045563,297.37,8.545e-05,2]
[355890802,1741686046011,297.37,8.571e-05,2]
[355890803,1741686046130,297.37,8.597e-05,2]
[355890804,1741686046322,297.37,8.624e-05,2]
[355890805,1741686046531,297.37,8.65e-05,2]
[355890806,1741686046845,297.37,8.676e-05,2]
[355890807,1741686047374,297.37,8.702e-05,2]
[355890808,1741686047530,297.37,8.729e-05,2]
[355890809,1741686047677,297.37,8.755e-05,2]
[355890810,1741686048050,297.37,8.781e-05,2]
[355890811,1741686116563,1811.19,8.307e-05,2]
[355890813,1741686310594,339.56,8.282e-05,2]
[355890815,1741686437848,520.02,8.211e-05,2]
[355890816,1741686475750,1000.0,8.219e-05,2]
[355890823,1741686631658,-297.37,8.807e-05,2]
[355890824,1741686631668,-150.0,8.934e-05,2]
[355890825,1741686631678,-3031.48046388,9e-05,2]
[355890826,1741686631687,-61.17759217,9e-05,2]
[355890827,1741686631697,-1007.23937754,9e-05,2]
[355890828,1741686631709,-273.76062246,9e-05,2]
[355890829,1741686631718,-150.0,9.01e-05,2]
[355890830,1741686631728,-165.63170906,9.039e-05,2]
[355890831,1741686631766,-134.36829094,9.039e-05,2]
[355890832,1741686631776,-341.10670907,9.04e-05,2]
[355890833,1741686631788,-1746.08559093,9.04e-05,2]
[355890834,1741686631797,-1953.91440907,9.04e-05,2]
[355890835,1741686631834,-13427.43366975,9.04e-05,2]
[355890836,1741686631846,-592.43355733,9.04e-05,2]
[355890837,1741686631870,-725.3292714,9.04e-05,2]
[355890838,1741686631964,-4947.25262297,9.04e-05,2]
[355890839,1741686632001,-2388.80000009,9.04e-05,2]
[355890840,1741686632038,-437.14426939,9.04e-05,2]
[355890841,1741686632047,-3330.1078,9.041e-05,2]
[355890842,1741686632057,-150.0,9.041e-05,2]